[Event "21st Sants Open 2019"]
[Site "Cotxeres de Sants"]
[Date "2019.08.30"]
[Round "8.3"]
[White "Harsha Bharathakoti"]
[Black "Gines Esteo, Pedro Antonio"]
[Result "1-0"]
[ECO "A06"]
[WhiteElo "2489"]
[BlackElo "2417"]
[Annotator "ChessBase"]
[PlyCount "65"]
[EventDate "2019.08.22"]
[EventType "swiss"]
[EventCountry "ESP"]
[SourceTitle "playchess.com"]
[Source "ChessBase"]
[SourceQuality "1"]
[TimeControl "40/5400+30:1800+30"]

1. Nf3 {[%emt 0:03:31]} d5 {[%emt 0:01:52]} 2. c4 {[%emt 0:01:57]} c6 {[%emt 0:01:02]} 3. e3 {[%emt 0:01:14]} Nf6 {[%emt 0:03:47]} 4. Nc3 {[%emt 0:00:10]} g6 {[%emt 0:08:11]} 5. d4 {[%emt 0:00:42]} Bg7 {[%emt 0:00:06]} 6. Be2 {[%emt 0:00:35]} O-O {[%emt 0:00:06]} 7. O-O {[%emt 0:00:07]} dxc4 {[%emt 0:08:51]} 8. Bxc4 {[%emt 0:00:36]} Bg4 {[%emt 0:00:05]} 9. Be2 {[%emt 0:03:40]} Nbd7 {[%emt 0:00:33]} 10. e4 {[%emt 0:00:14]} Bxf3 {[%emt 0:12:25]} 11. Bxf3 {[%emt 0:00:09]} e5 {[%emt 0:00:02]} 12. d5 {[%emt 0:01:36]} cxd5 {[%emt 0:03:04]} 13. exd5 {[%emt 0:03:11]} Nb6 {[%emt 0:10:35]} 14. Qb3 {[%emt 0:09:32]} Ne8 {[%emt 0:05:17]} 15. Ne4 {[%emt 0:18:34]} Nd6 {[%emt 0:09:34]} 16. Bg5 {[%emt 0:05:43]} f6 {[%emt 0:02:24]} 17. Nxd6 {[%emt 0:04:00]} Qxd6 {[%emt 0:00:07]} 18. Bd2 {[%emt 0:01:12]} Rf7 {[%emt 0:03:37]} 19. Bb4 {[%emt 0:05:02]} Qd7 {[%emt 0:09:09]} 20. a4 {[%emt 0:13:59]} Re8 {[%emt 0:09:04]} 21. a5 {[%emt 0:07:35]} Nc8 {[%emt 0:00:14]} 22. d6 {[%emt 0:00:04]} e4 {[%emt 0:03:16]} 23. Be2 {[%emt 0:00:41]} Kh8 {[%emt 0:03:29]} 24. Bb5 {[%emt 0:03:43]} Qxb5 {[%emt 0:00:02]} 25. Qxf7 {[%emt 0:00:05]} Rf8 {[%emt 0:00:52]} 26. Qc7 {[%emt 0:00:13]} Qxb4 {[%emt 0:02:03]} 27. d7 {[%emt 0:00:06]} Ne7 {[%emt 0:01:55]} 28. d8=Q {[%emt 0:00:06]} Nf5 {[%emt 0:01:30]} 29. Qdd7 {[%emt 0:01:14]} Qxb2 {[%emt 0:00:31]} 30. Rab1 {[%emt 0:00:08]} Qe2 {[%emt 0:00:08]} 31. Rxb7 {[%emt 0:00:16]} Rg8 {[%emt 0:00:23]} 32. Qf7 {[%emt 0:00:51]} e3 {[%emt 0:01:13]} 33. Qxg8+ {[%emt 0:00:07]} 1-0

[Event "21st Sants Open 2019"]
[Site "Cotxeres de Sants"]
[Date "2019.08.30"]
[Round "8.5"]
[White "Vaibhav, Suri"]
[Black "Lettieri, Giuseppe"]
[Result "1-0"]
[ECO "B13"]
[WhiteElo "2591"]
[BlackElo "2431"]
[Annotator "ChessBase"]
[PlyCount "59"]
[EventDate "2019.08.22"]
[EventType "swiss"]
[EventCountry "ESP"]
[SourceTitle "playchess.com"]
[Source "ChessBase"]
[SourceQuality "1"]
[TimeControl "40/5400+30:1800+30"]

1. e4 c6 2. d4 d5 3. exd5 cxd5 4. Bd3 Nc6 5. c3 Qc7 6. h3 Nf6 7. Nf3 g6 8. Qc2 Nh5 9. O-O Nf4 10. Bb5 Bh6 11. c4 Bf5 12. Bxf4 Bxf4 13. Qa4 e6 14. Nc3 O-O-O 15. cxd5 exd5 16. Bxc6 bxc6 17. Rac1 Kb7 18. Ne5 Bxc1 19. Rxc1 Qb6 20. Qa3 Rc8 21. Nxf7 Qxd4 22. Nxh8 Qxh8 23. Na4 Qd8 24. Re1 Rc7 25. Nc5+ Ka8 26. Qa4 d4 27. g4 Qd5 28. Re8+ Bc8 29. Qa6 Kb8 30. Rxc8+ 1-0

[Event "21st Sants Open 2019"]
[Site "Cotxeres de Sants"]
[Date "2019.08.30"]
[Round "8.6"]
[White "Hillarp Persson, Tiger"]
[Black "Lagunow, Raphael"]
[Result "1-0"]
[ECO "A06"]
[WhiteElo "2558"]
[BlackElo "2431"]
[Annotator "ChessBase"]
[PlyCount "49"]
[EventDate "2019.08.22"]
[EventType "swiss"]
[EventCountry "ESP"]
[SourceTitle "playchess.com"]
[Source "ChessBase"]
[SourceQuality "1"]
[TimeControl "40/5400+30:1800+30"]

1. Nf3 d5 2. g3 Nd7 3. d4 b5 4. Nc3 c6 5. Bg2 f5 6. O-O Ngf6 7. Bg5 e6 8. e3 Qb6 9. a4 a5 10. Ne2 b4 11. Nf4 c5 12. c4 bxc3 13. bxc3 Ne4 14. c4 dxc4 15. Nd2 Nxg5 16. Bxa8 cxd4 17. Nxc4 Qa6 18. Bg2 Qxc4 19. Rc1 Qa6 20. Rc6 e5 21. Rxa6 Bxa6 22. Qh5+ Nf7 23. Qxf5 exf4 24. Qe6+ Be7 25. Qxa6 1-0

[Event "21st Sants Open 2019"]
[Site "Cotxeres de Sants"]
[Date "2019.08.30"]
[Round "8.8"]
[White "Panelo, Marcelo"]
[Black "Escobar Forero, Alder"]
[Result "1/2-1/2"]
[ECO "A55"]
[WhiteElo "2378"]
[BlackElo "2477"]
[Annotator "ChessBase"]
[PlyCount "78"]
[EventDate "2019.08.22"]
[EventType "swiss"]
[EventCountry "ESP"]
[SourceTitle "playchess.com"]
[Source "ChessBase"]
[SourceQuality "1"]
[TimeControl "40/5400+30:1800+30"]

1. d4 {[%emt 0:01:58]} d6 {[%emt 0:00:00]} 2. Nf3 {[%emt 0:01:01]} Nf6 {[%emt 0:00:00]} 3. c4 {[%emt 0:00:36]} Nbd7 {[%emt 0:00:00]} 4. Nc3 {[%emt 0:00:18]} e5 {[%emt 0:00:05]} 5. e4 {[%emt 0:00:59]} c6 {[%emt 0:00:28]} 6. Be2 {[%emt 0:00:19]} Be7 {[%emt 0:00:59]} 7. O-O {[%emt 0:00:51]} O-O {[%emt 0:00:09]} 8. Be3 {[%emt 0:02:42]} a6 {[%emt 0:00:21]} 9. d5 {[%emt 0:00:20]} cxd5 {[%emt 0:00:49]} 10. cxd5 {[%emt 0:00:07]} b5 {[%emt 0:00:12]} 11. Nd2 {[%emt 0:06:56]} Bb7 {[%emt 0:00:14]} 12. b4 {[%emt 0:01:57]} Nxe4 {[%emt 0:03:00]} 13. Ndxe4 {[%emt 0:25:37]} f5 {[%emt 0:00:14]} 14. a4 {[%emt 0:01:14]} bxa4 {[%emt 0:04:12]} 15. Nxa4 {[%emt 0:06:44]} fxe4 {[%emt 0:01:40]} 16. Bg4 {[%emt 0:00:08]} Nf6 {[%emt 0:00:56]} 17. Be6+ {[%emt 0:00:04]} Kh8 {[%emt 0:00:02]} 18. Nb6 {[%emt 0:01:25]} Rb8 {[%emt 0:00:08]} 19. Qc2 {[%emt 0:07:53]} Qe8 {[%emt 0:02:26]} 20. Qc7 {[%emt 0:01:30]} Qd8 {[%emt 0:00:08]} 21. Qc2 {[%emt 0:06:55]} Qe8 {[%emt 0:00:07]} 22. Qc7 {[%emt 0:02:22]} Qd8 {[%emt 0:00:23]} 23. Qc4 {[%emt 0:01:03]} Qe8 {[%emt 0:00:22]} 24. Rxa6 {[%emt 0:09:03]} Bd8 {[%emt 0:08:38]} 25. Ra7 {[%emt 0:03:08]} Bxd5 {[%emt 0:00:40]} 26. Bxd5 {[%emt 0:00:38]} Bxb6 {[%emt 0:00:13]} 27. Bxb6 {[%emt 0:01:20]} Nxd5 {[%emt 0:00:06]} 28. Qxd5 {[%emt 0:01:52]} Rxb6 {[%emt 0:00:07]} 29. Qxe4 {[%emt 0:00:30]} Rf4 {[%emt 0:07:41]} 30. Qd5 {[%emt 0:06:27]} Rd4 {[%emt 0:01:36]} 31. Re7 {[%emt 0:01:37]} Qg8 {[%emt 0:00:31]} 32. Qxg8+ {[%emt 0:01:11]} Kxg8 {[%emt 0:00:01]} 33. Rc1 {[%emt 0:01:06]} Rc6 {[%emt 0:00:25]} 34. Ra1 {[%emt 0:00:47]} Ra6 {[%emt 0:00:03]} 35. Rc1 {[%emt 0:00:50]} Rc4 {[%emt 0:00:06]} 36. Rd1 {[%emt 0:00:45]} Rxb4 {[%emt 0:00:21]} 37. h3 {[%emt 0:00:45]} Rab6 {[%emt 0:02:17]} 38. Rd7 {[%emt 0:01:25]} Rb1 {[%emt 0:01:49]} 39. R7xd6 {[%emt 0:00:12]} Rxd1+ {[%emt 0:00:19]} 1/2-1/2

[Event "21st Sants Open 2019"]
[Site "Cotxeres de Sants"]
[Date "2019.08.30"]
[Round "8.9"]
[White "Arenas, David"]
[Black "Valderrama Quiceno, Esteban Alb"]
[Result "1/2-1/2"]
[ECO "B49"]
[WhiteElo "2448"]
[BlackElo "2429"]
[Annotator "NA"]
[PlyCount "24"]
[EventDate "2019.08.22"]
[EventType "swiss"]
[EventCountry "ESP"]
[SourceTitle "playchess.com"]
[Source "ChessBase"]
[SourceQuality "1"]
[TimeControl "40/5400+30:1800+30"]

1. e4 {[%emt 0:23:29]} c5 {[%emt 0:00:00]} 2. Nf3 {[%emt 0:00:11]} Nc6 {[%emt 0:00:00]} 3. Nc3 {[%emt 0:00:13]} e6 {[%emt 0:00:00]} 4. d4 {[%emt 0:00:19]} cxd4 {[%emt 0:00:00]} 5. Nxd4 {[%emt 0:00:04]} Qc7 {[%emt 0:00:04]} 6. Be3 {[%emt 0:00:32]} a6 {[%emt 0:00:20]} 7. Be2 {[%emt 0:00:07]} Nf6 {[%emt 0:00:09]} 8. O-O {[%emt 0:00:12]} Be7 {[%emt 0:00:21]} 9. f4 {[%emt 0:00:10]} d6 {[%emt 0:00:10]} 10. Kh1 {[%emt 0:00:08]} O-O {[%emt 0:00:08]} 11. Qe1 {[%emt 0:00:11]} Bd7 {[%emt 0:01:26]} 12. Qg3 {[%emt 0:00:33]} b5 {[%emt 0:06:06]} 1/2-1/2

[Event "21st Sants Open 2019"]
[Site "Cotxeres de Sants"]
[Date "2019.08.30"]
[Round "8.10"]
[White "Sardana, Rishi"]
[Black "Idani, Pouya"]
[Result "1/2-1/2"]
[ECO "A21"]
[WhiteElo "2410"]
[BlackElo "2581"]
[Annotator "ChessBase"]
[PlyCount "77"]
[EventDate "2019.08.22"]
[EventType "swiss"]
[EventCountry "ESP"]
[SourceTitle "playchess.com"]
[Source "ChessBase"]
[SourceQuality "1"]
[TimeControl "40/5400+30:1800+30"]

1. c4 {[%emt 0:00:00]} e5 {[%emt 0:00:44]} 2. Nc3 {[%emt 0:00:00]} Bb4 {[%emt 0:00:07]} 3. Nd5 {[%emt 0:00:00]} Na6 {[%emt 0:00:05]} 4. Nxb4 {[%emt 0:04:06]} Nxb4 {[%emt 0:00:07]} 5. d3 {[%emt 0:00:12]} c5 {[%emt 0:06:35]} 6. Nf3 {[%emt 0:04:16]} Nc6 {[%emt 0:00:05]} 7. g3 {[%emt 0:01:07]} Nge7 {[%emt 0:00:08]} 8. Bg2 {[%emt 0:00:08]} O-O {[%emt 0:00:06]} 9. O-O {[%emt 0:00:19]} d5 {[%emt 0:04:19]} 10. cxd5 {[%emt 0:00:54]} Nxd5 {[%emt 0:00:05]} 11. Qb3 {[%emt 0:04:45]} Nc7 {[%emt 0:04:28]} 12. Be3 {[%emt 0:02:33]} b6 {[%emt 0:03:14]} 13. Rfc1 {[%emt 0:14:37]} Be6 {[%emt 0:05:01]} 14. Qa4 {[%emt 0:01:23]} Bd5 {[%emt 0:00:32]} 15. Bxc5 {[%emt 0:07:49]} bxc5 {[%emt 0:00:06]} 16. e4 {[%emt 0:00:04]} Nb4 {[%emt 0:10:12]} 17. exd5 {[%emt 0:03:14]} Qd6 {[%emt 0:02:01]} 18. Ne1 {[%emt 0:16:15]} Rab8 {[%emt 0:05:24]} 19. a3 {[%emt 0:12:17]} Nbxd5 {[%emt 0:00:27]} 20. Qxa7 {[%emt 0:00:55]} Ne6 {[%emt 0:09:49]} 21. Rab1 {[%emt 0:02:28]} Nf6 {[%emt 0:12:07]} 22. Qa4 {[%emt 0:05:33]} Nd4 {[%emt 0:00:11]} 23. Qd1 {[%emt 0:01:34]} Rfd8 {[%emt 0:01:46]} 24. Nf3 {[%emt 0:02:02]} Nb3 {[%emt 0:00:30]} 25. Rc3 {[%emt 0:00:33]} c4 {[%emt 0:00:08]} 26. Qe2 {[%emt 0:07:55]} cxd3 {[%emt 0:01:47]} 27. Qxe5 {[%emt 0:00:08]} Qb6 {[%emt 0:01:50]} 28. Qc7 {[%emt 0:04:47]} d2 {[%emt 0:12:21]} 29. Qxb6 {[%emt 0:00:44]} Rxb6 {[%emt 0:00:51]} 30. Rd1 {[%emt 0:00:02]} Ne4 {[%emt 0:02:35]} 31. Rc2 {[%emt 0:00:06]} f5 {[%emt 0:02:05]} 32. Bf1 {[%emt 0:00:10]} Kf8 {[%emt 0:02:15]} 33. Kg2 {[%emt 0:01:45]} g6 {[%emt 0:05:07]} 34. h4 {[%emt 0:00:11]} h6 {[%emt 0:02:10]} 35. Bc4 {[%emt 0:00:41]} Na1 {[%emt 0:00:15]} 36. Rxa1 {[%emt 0:01:34]} d1=Q {[%emt 0:00:04]} 37. Rxd1 {[%emt 0:00:03]} Rxd1 {[%emt 0:00:04]} 38. a4 {[%emt 0:01:50]} Ra1 {[%emt 0:00:56]} 39. Bb5 {[%emt 0:00:35]} 1/2-1/2

[Event "21st Sants Open 2019"]
[Site "Cotxeres de Sants"]
[Date "2019.08.30"]
[Round "8.11"]
[White "Puranik, Abhimanyu"]
[Black "Morales, Jhon Alexander"]
[Result "1/2-1/2"]
[ECO "B67"]
[WhiteElo "2550"]
[BlackElo "2405"]
[Annotator "ChessBase"]
[PlyCount "46"]
[EventDate "2019.08.22"]
[EventType "swiss"]
[EventCountry "ESP"]
[SourceTitle "playchess.com"]
[Source "ChessBase"]
[SourceQuality "1"]
[TimeControl "40/5400+30:1800+30"]

1. e4 {[%emt 0:00:00]} c5 {[%emt 0:00:00]} 2. Nf3 {[%emt 0:00:00]} d6 {[%emt 0:00:16]} 3. d4 {[%emt 0:00:00]} cxd4 {[%emt 0:00:06]} 4. Nxd4 {[%emt 0:00:00]} Nf6 {[%emt 0:00:07]} 5. Nc3 {[%emt 0:00:00]} Nc6 {[%emt 0:02:36]} 6. Bg5 {[%emt 0:00:29]} e6 {[%emt 0:02:39]} 7. Qd2 {[%emt 0:00:45]} a6 {[%emt 0:00:44]} 8. O-O-O {[%emt 0:00:29]} Bd7 {[%emt 0:01:36]} 9. Nxc6 {[%emt 0:02:25]} Bxc6 {[%emt 0:04:09]} 10. f3 {[%emt 0:00:21]} Qa5 {[%emt 0:15:16]} 11. Kb1 {[%emt 0:04:59]} Be7 {[%emt 0:00:39]} 12. h4 {[%emt 0:01:12]} h6 {[%emt 0:07:20]} 13. Be3 {[%emt 0:04:55]} h5 {[%emt 0:00:31]} 14. Qf2 {[%emt 0:14:08]} Qc7 {[%emt 0:03:27]} 15. Qg3 {[%emt 0:03:16]} g6 {[%emt 0:04:11]} 16. Ne2 {[%emt 0:05:55]} Rc8 {[%emt 0:02:46]} 17. Nd4 {[%emt 0:06:40]} Bd7 {[%emt 0:00:22]} 18. Bd3 {[%emt 0:01:02]} e5 {[%emt 0:06:05]} 19. Ne2 {[%emt 0:00:33]} Be6 {[%emt 0:00:39]} 20. Rhf1 {[%emt 0:03:47]} d5 {[%emt 0:08:39]} 21. Bc1 {[%emt 0:05:30]} dxe4 {[%emt 0:03:12]} 22. fxe4 {[%emt 0:00:03]} O-O {[%emt 0:01:24]} 23. b3 {[%emt 0:05:02]} Qd8 1/2-1/2

[Event "21st Sants Open 2019"]
[Site "Cotxeres de Sants"]
[Date "2019.08.30"]
[Round "8.13"]
[White "Harika, Dronavalli"]
[Black "Lorenzo De La Riva, Lazaro"]
[Result "1/2-1/2"]
[ECO "A05"]
[WhiteElo "2495"]
[BlackElo "2373"]
[Annotator "ChessBase"]
[PlyCount "80"]
[EventDate "2019.08.22"]
[EventType "swiss"]
[EventCountry "ESP"]
[SourceTitle "playchess.com"]
[Source "ChessBase"]
[SourceQuality "1"]
[TimeControl "40/5400+30:1800+30"]

1. Nf3 {[%emt 0:02:38]} Nf6 {[%emt 0:00:00]} 2. c4 {[%emt 0:00:22]} g6 {[%emt 0:01:34]} 3. g3 {[%emt 0:00:27]} Bg7 {[%emt 0:00:26]} 4. Bg2 {[%emt 0:00:06]} O-O {[%emt 0:01:37]} 5. O-O {[%emt 0:00:18]} d6 {[%emt 0:02:13]} 6. Nc3 {[%emt 0:00:54]} e5 {[%emt 0:01:29]} 7. d4 {[%emt 0:05:02]} Nc6 {[%emt 0:02:16]} 8. dxe5 {[%emt 0:00:28]} dxe5 {[%emt 0:00:23]} 9. Bg5 {[%emt 0:00:11]} Be6 {[%emt 0:02:00]} 10. Qc1 {[%emt 0:00:21]} Qc8 {[%emt 0:09:21]} 11. Rd1 {[%emt 0:00:40]} Nd7 {[%emt 0:13:58]} 12. b3 {[%emt 0:12:40]} Re8 {[%emt 0:07:43]} 13. Bh6 {[%emt 0:01:06]} f6 {[%emt 0:02:15]} 14. Bxg7 {[%emt 0:02:16]} Kxg7 {[%emt 0:00:02]} 15. Qb2 {[%emt 0:01:54]} Nd8 {[%emt 0:07:49]} 16. Rd2 {[%emt 0:03:57]} Nf7 {[%emt 0:00:14]} 17. Rad1 {[%emt 0:03:07]} Nf8 {[%emt 0:03:08]} 18. Ne4 {[%emt 0:09:03]} Bf5 {[%emt 0:02:12]} 19. Ne1 {[%emt 0:07:17]} Bxe4 {[%emt 0:08:29]} 20. Bxe4 {[%emt 0:00:12]} c6 {[%emt 0:00:59]} 21. Bg2 {[%emt 0:04:19]} Qc7 {[%emt 0:02:16]} 22. b4 {[%emt 0:02:23]} Rad8 {[%emt 0:00:56]} 23. c5 {[%emt 0:02:16]} Rxd2 {[%emt 0:02:29]} 24. Rxd2 {[%emt 0:00:07]} Ne6 {[%emt 0:03:12]} 25. h4 {[%emt 0:03:07]} h5 {[%emt 0:06:15]} 26. Bh3 {[%emt 0:07:39]} f5 {[%emt 0:00:54]} 27. Nc2 {[%emt 0:02:26]} Rd8 {[%emt 0:11:45]} 28. Ne3 {[%emt 0:03:07]} Rd4 {[%emt 0:01:25]} 29. Rxd4 {[%emt 0:00:27]} Nxd4 {[%emt 0:03:46]} 30. Nc4 {[%emt 0:01:34]} Kh7 {[%emt 0:02:54]} 31. Bg2 {[%emt 0:01:37]} Qe7 {[%emt 0:00:48]} 32. e3 {[%emt 0:00:59]} Nb5 {[%emt 0:00:03]} 33. Qd2 {[%emt 0:05:10]} e4 {[%emt 0:00:37]} 34. Bf1 {[%emt 0:01:52]} Nc7 {[%emt 0:00:30]} 35. Be2 {[%emt 0:01:22]} Nd5 {[%emt 0:00:12]} 36. a3 {[%emt 0:00:17]} Qf6 {[%emt 0:00:32]} 37. Qd4 {[%emt 0:03:11]} Qxd4 {[%emt 0:00:20]} 38. exd4 {[%emt 0:00:02]} Kg7 {[%emt 0:00:27]} 39. Kf1 {[%emt 0:03:02]} Kh7 40. Kg1 Nc3 1/2-1/2

[Event "21st Sants Open 2019"]
[Site "Cotxeres de Sants"]
[Date "2019.08.30"]
[Round "8.14"]
[White "Munoz, Miguel"]
[Black "Sanchez, Sebastian Felipe"]
[Result "1/2-1/2"]
[ECO "B11"]
[WhiteElo "2514"]
[BlackElo "2405"]
[Annotator "ChessBase"]
[PlyCount "91"]
[EventDate "2019.08.22"]
[EventType "swiss"]
[EventCountry "ESP"]
[SourceTitle "playchess.com"]
[Source "ChessBase"]
[SourceQuality "1"]
[TimeControl "40/5400+30:1800+30"]

1. e4 {[%emt 0:12:22]} c6 {[%emt 0:00:00]} 2. Nc3 {[%emt 0:00:34]} d5 {[%emt 0:00:00]} 3. Nf3 {[%emt 0:00:07]} Bg4 {[%emt 0:00:00]} 4. Be2 {[%emt 0:00:08]} e6 {[%emt 0:00:02]} 5. O-O {[%emt 0:00:05]} Nf6 {[%emt 0:00:00]} 6. e5 {[%emt 0:00:15]} Nfd7 7. d4 Be7 {[%emt 0:00:20]} 8. Ne1 {[%emt 0:00:18]} Bxe2 {[%emt 0:00:04]} 9. Nxe2 {[%emt 0:00:08]} c5 {[%emt 0:00:04]} 10. c3 {[%emt 0:00:08]} Nc6 {[%emt 0:00:05]} 11. Nd3 {[%emt 0:00:45]} O-O {[%emt 0:02:49]} 12. Be3 {[%emt 0:00:51]} Rc8 {[%emt 0:18:18]} 13. Nef4 c4 14. Ne1 {[%emt 0:00:45]} b5 {[%emt 0:00:35]} 15. Qg4 {[%emt 0:00:32]} Kh8 {[%emt 0:00:18]} 16. Nf3 {[%emt 0:04:29]} b4 {[%emt 0:13:39]} 17. Rfc1 {[%emt 0:07:03]} Rb8 {[%emt 0:10:53]} 18. h4 {[%emt 0:06:49]} Rb6 19. g3 bxc3 {[%emt 0:15:07]} 20. bxc3 {[%emt 0:00:39]} Ba3 {[%emt 0:00:47]} 21. Rc2 {[%emt 0:00:41]} Ne7 {[%emt 0:00:42]} 22. Ng5 {[%emt 0:07:29]} Qe8 23. Bc1 {[%emt 0:05:16]} Bxc1 {[%emt 0:02:02]} 24. Raxc1 {[%emt 0:00:17]} h6 {[%emt 0:01:58]} 25. Nf3 {[%emt 0:17:50]} Ng6 26. Nh5 f5 {[%emt 0:04:38]} 27. exf6 {[%emt 0:00:36]} gxf6 {[%emt 0:00:05]} 28. Nf4 {[%emt 0:07:16]} Rg8 {[%emt 0:00:19]} 29. Nxg6+ {[%emt 0:01:10]} Rxg6 {[%emt 0:01:14]} 30. Qf4 {[%emt 0:00:05]} Qb8 31. Qxb8+ Rxb8 {[%emt 0:04:56]} 32. Re2 {[%emt 0:10:52]} Nf8 {[%emt 0:00:34]} 33. Ne1 Rg7 {[%emt 0:01:33]} 34. Ng2 {[%emt 0:00:48]} Rgb7 {[%emt 0:00:29]} 35. Nf4 {[%emt 0:00:10]} Rb1 {[%emt 0:00:07]} 36. Rxb1 {[%emt 0:00:07]} Rxb1+ {[%emt 0:00:09]} 37. Kg2 {[%emt 0:00:06]} Rb6 {[%emt 0:01:52]} 38. Kf3 Kg7 {[%emt 0:00:35]} 39. Kg4 {[%emt 0:01:28]} f5+ {[%emt 0:00:00]} 40. Kh5 Kh7 41. g4 {[%emt 0:18:16]} fxg4 {[%emt 0:05:12]} 42. Kxg4 {[%emt 0:00:05]} Kg7 43. Kh5 Kh7 {[%emt 0:03:08]} 44. Kg4 {[%emt 0:04:41]} Kg7 45. Kh5 {[%emt 0:18:30]} Kh7 {[%emt 0:00:18]} 46. Kg4 {[%emt 0:00:59]} 1/2-1/2

[Event "21st Sants Open 2019"]
[Site "Cotxeres de Sants"]
[Date "2019.08.30"]
[Round "8.15"]
[White "Romero Moreno, Felix"]
[Black "Garcia Ruiz, Adrian"]
[Result "1/2-1/2"]
[ECO "D37"]
[WhiteElo "1914"]
[BlackElo "1933"]
[Annotator "NA"]
[PlyCount "81"]
[EventDate "2019.08.22"]
[EventType "swiss"]
[EventCountry "ESP"]
[SourceTitle "playchess.com"]
[Source "ChessBase"]
[SourceQuality "1"]
[TimeControl "40/5400+30:1800+30"]

1. d4 Nf6 {[%emt 0:24:08]} 2. Nf3 {[%emt 0:00:29]} d5 {[%emt 0:00:03]} 3. c4 {[%emt 0:00:10]} e6 {[%emt 0:00:04]} 4. Nc3 {[%emt 0:01:14]} dxc4 5. e3 {[%emt 0:01:48]} a6 {[%emt 0:01:24]} 6. Bxc4 {[%emt 0:00:21]} b5 {[%emt 0:00:02]} 7. Bb3 {[%emt 0:00:54]} Bb7 {[%emt 0:00:11]} 8. O-O {[%emt 0:00:18]} c5 {[%emt 0:00:29]} 9. Qe2 {[%emt 0:06:36]} cxd4 {[%emt 0:00:28]} 10. exd4 {[%emt 0:00:53]} Be7 {[%emt 0:00:45]} 11. Rd1 {[%emt 0:00:22]} b4 {[%emt 0:01:44]} 12. Na4 {[%emt 0:03:58]} O-O {[%emt 0:01:07]} 13. Bg5 {[%emt 0:07:08]} Nbd7 {[%emt 0:00:23]} 14. Rac1 {[%emt 0:00:59]} Bd5 {[%emt 0:03:14]} 15. Ne5 {[%emt 0:05:55]} Bxb3 {[%emt 0:05:21]} 16. axb3 {[%emt 0:04:29]} Nb8 {[%emt 0:09:09]} 17. Nc5 {[%emt 0:13:55]} Nd5 18. Bxe7 {[%emt 0:05:42]} Qxe7 {[%emt 0:10:45]} 19. Ncd3 {[%emt 0:09:35]} Rd8 {[%emt 0:04:38]} 20. Rc5 {[%emt 0:02:38]} Qb7 {[%emt 0:02:37]} 21. Rdc1 {[%emt 0:03:25]} Nd7 {[%emt 0:03:19]} 22. Nxd7 {[%emt 0:06:46]} Qxd7 {[%emt 0:00:34]} 23. Ne5 {[%emt 0:01:24]} Qb7 {[%emt 0:02:06]} 24. Qf3 {[%emt 0:02:00]} f6 {[%emt 0:08:31]} 25. Nc6 {[%emt 0:01:47]} Rd7 {[%emt 0:02:46]} 26. Qe4 {[%emt 0:03:30]} Rd6 {[%emt 0:01:16]} 27. Na5 {[%emt 0:02:02]} Qf7 {[%emt 0:01:35]} 28. Rc8+ {[%emt 0:01:23]} Rd8 {[%emt 0:00:22]} 29. R8c6 {[%emt 0:01:11]} Re8 {[%emt 0:02:58]} 30. Nc4 {[%emt 0:02:02]} Qg6 {[%emt 0:02:15]} 31. Qxg6 {[%emt 0:01:42]} hxg6 {[%emt 0:00:01]} 32. Re1 {[%emt 0:02:28]} Rad8 {[%emt 0:05:42]} 33. Rcxe6 {[%emt 0:02:38]} Rxe6 {[%emt 0:00:12]} 34. Rxe6 {[%emt 0:00:01]} Nf4 {[%emt 0:00:02]} 35. Rxa6 {[%emt 0:03:10]} Rxd4 {[%emt 0:00:02]} 36. f3 {[%emt 0:01:54]} Rd3 {[%emt 0:01:39]} 37. Rd6 {[%emt 0:01:42]} Rxb3 {[%emt 0:00:25]} 38. Rd2 {[%emt 0:00:35]} Kf7 {[%emt 0:02:38]} 39. Kf1 {[%emt 0:00:28]} Ke6 {[%emt 0:00:39]} 40. Rd6+ {[%emt 0:00:00]} Ke7 {[%emt 0:00:00]} 41. Rd2 {[%emt 0:04:39]} 1/2-1/2

[Event "21st Sants Open 2019"]
[Site "Cotxeres de Sants"]
[Date "2019.08.30"]
[Round "8.16"]
[White "Bedoya Rosales, Luis"]
[Black "Planella Sanchez, Jordi"]
[Result "0-1"]
[ECO "B27"]
[WhiteElo "1899"]
[BlackElo "1919"]
[Annotator "NA"]
[PlyCount "106"]
[EventDate "2019.08.22"]
[EventType "swiss"]
[EventCountry "ESP"]
[SourceTitle "playchess.com"]
[Source "ChessBase"]
[SourceQuality "1"]
[TimeControl "40/5400+30:1800+30"]

1. e4 {[%emt 0:02:43]} c5 {[%emt 0:09:47]} 2. Nf3 {[%emt 0:01:50]} b6 {[%emt 0:00:09]} 3. d4 {[%emt 0:02:18]} cxd4 {[%emt 0:01:13]} 4. Nxd4 {[%emt 0:00:19]} Bb7 {[%emt 0:00:11]} 5. Nc3 {[%emt 0:00:11]} e6 {[%emt 0:00:25]} 6. Bd3 {[%emt 0:04:41]} a6 {[%emt 0:02:46]} 7. O-O {[%emt 0:02:32]} Qc7 {[%emt 0:02:57]} 8. Qe2 {[%emt 0:06:46]} d6 {[%emt 0:04:32]} 9. Be3 {[%emt 0:04:01]} Nf6 {[%emt 0:00:43]} 10. Rae1 {[%emt 0:12:47]} Nbd7 {[%emt 0:03:01]} 11. f4 {[%emt 0:03:40]} Nc5 {[%emt 0:07:36]} 12. Bf2 {[%emt 0:05:27]} Nxd3 {[%emt 0:03:22]} 13. cxd3 {[%emt 0:03:45]} Be7 {[%emt 0:04:17]} 14. Rc1 {[%emt 0:01:30]} Rc8 {[%emt 0:00:46]} 15. Be3 {[%emt 0:10:01]} Qd8 {[%emt 0:00:46]} 16. Rc2 {[%emt 0:00:16]} O-O {[%emt 0:13:04]} 17. Rfc1 Qd7 18. h3 {[%emt 0:21:00]} Rfd8 {[%emt 0:01:26]} 19. b3 {[%emt 0:11:05]} b5 {[%emt 0:00:10]} 20. b4 {[%emt 0:02:07]} e5 {[%emt 0:22:34]} 21. Nb3 {[%emt 0:00:43]} Re8 {[%emt 0:00:49]} 22. a3 {[%emt 0:01:10]} Bf8 {[%emt 0:00:49]} 23. Qd1 {[%emt 0:01:54]} g6 {[%emt 0:03:32]} 24. Na5 {[%emt 0:00:10]} Ba8 {[%emt 0:01:19]} 25. Ne2 {[%emt 0:00:46]} Nh5 {[%emt 0:01:09]} 26. Rxc8 Rxc8 {[%emt 0:00:06]} 27. Rxc8 {[%emt 0:00:29]} Qxc8 {[%emt 0:00:03]} 28. Qc1 {[%emt 0:00:34]} Qd7 {[%emt 0:01:10]} 29. g4 {[%emt 0:00:49]} exf4 {[%emt 0:01:15]} 30. Nxf4 {[%emt 0:00:21]} Nxf4 {[%emt 0:00:20]} 31. Bxf4 {[%emt 0:00:01]} Bg7 {[%emt 0:01:06]} 32. Kh2 {[%emt 0:00:48]} f5 {[%emt 0:01:46]} 33. gxf5 {[%emt 0:00:22]} gxf5 {[%emt 0:00:05]} 34. Qc2 {[%emt 0:00:36]} fxe4 {[%emt 0:02:29]} 35. dxe4 {[%emt 0:00:02]} Qe6 {[%emt 0:00:56]} 36. Qb3 {[%emt 0:01:45]} d5 {[%emt 0:01:58]} 37. exd5 {[%emt 0:00:27]} Bxd5 {[%emt 0:04:21]} 38. Qd3 {[%emt 0:00:04]} Qf7 {[%emt 0:01:26]} 39. Kg3 {[%emt 0:00:46]} Bf6 {[%emt 0:01:26]} 40. Kh2 {[%emt 0:00:00]} Qe6 {[%emt 0:00:00]} 41. Bg3 {[%emt 0:09:06]} Bc4 {[%emt 0:10:38]} 42. Qf3 {[%emt 0:11:13]} Bd5 {[%emt 0:02:07]} 43. Qd3 {[%emt 0:00:04]} Kg7 {[%emt 0:01:43]} 44. Bf4 {[%emt 0:06:30]} Qf7 {[%emt 0:03:21]} 45. Bg3 {[%emt 0:02:19]} Kg8 {[%emt 0:02:56]} 46. Qf5 {[%emt 0:01:58]} Be6 {[%emt 0:00:40]} 47. Qc5 {[%emt 0:03:02]} Qd7 {[%emt 0:01:24]} 48. Bd6 {[%emt 0:00:30]} Bxh3 {[%emt 0:01:00]} 49. Nc6 {[%emt 0:00:27]} Bf1 {[%emt 0:03:36]} 50. Qd5+ {[%emt 0:00:32]} Kh8 {[%emt 0:00:32]} 51. Ne5 {[%emt 0:00:31]} Qa7 {[%emt 0:04:14]} 52. Nf7+ {[%emt 0:00:29]} Kg7 {[%emt 0:00:29]} 53. Bc5 {[%emt 0:00:31]} Qxf7 {[%emt 0:00:26]} 0-1